[Event "*** Titled Tuesday Blitz"]
[Site "Chess.com"]
[Date "2020.04.14"]
[Round "4"]
[White "biesiadnik"]
[Black "BasilSmash"]
[Result "1-0"]
[WhiteElo "2586"]
[BlackElo "2378"]
[TimeControl "180+1"]
[EndTime "10:39:52 PDT"]
[Termination "biesiadnik won on time"]

1. e4 {[%clk 0:03:00.9]} 1... c6 {[%clk 0:02:59.8]} 2. Nf3 {[%clk 0:02:58.4]}
2... d5 {[%clk 0:03:00.7]} 3. Nc3 {[%clk 0:02:58.9]} 3... Bg4 {[%clk 0:03:00.2]}
4. h3 {[%clk 0:02:58.9]} 4... Bxf3 {[%clk 0:03:00.4]} 5. Qxf3 {[%clk 0:02:59.8]}
5... Nf6 {[%clk 0:03:00.7]} 6. e5 {[%clk 0:02:41.9]} 6... Nfd7 {[%clk
0:02:57.7]} 7. d4 {[%clk 0:02:41.9]} 7... e6 {[%clk 0:02:57.1]} 8. Ne2 {[%clk
0:02:36.7]} 8... c5 {[%clk 0:02:55.2]} 9. c3 {[%clk 0:02:36.8]} 9... Nc6 {[%clk
0:02:54.6]} 10. a3 {[%clk 0:02:27.2]} 10... Qb6 {[%clk 0:02:51.8]} 11. Qe3
{[%clk 0:02:22.3]} 11... a5 {[%clk 0:02:39.3]} 12. g3 {[%clk 0:02:17.3]} 12...
a4 {[%clk 0:02:38.5]} 13. Bg2 {[%clk 0:02:15.9]} 13... Na5 {[%clk 0:02:37.9]}
14. O-O {[%clk 0:02:09.7]} 14... Be7 {[%clk 0:02:30.5]} 15. Nf4 {[%clk
0:02:02.4]} 15... Nb3 {[%clk 0:02:23.4]} 16. Rb1 {[%clk 0:01:59.6]} 16... cxd4
{[%clk 0:02:23.1]} 17. cxd4 {[%clk 0:01:50.3]} 17... Qxd4 {[%clk 0:02:22.4]} 18.
Qe2 {[%clk 0:01:49.7]} 18... O-O {[%clk 0:02:15.2]} 19. Re1 {[%clk 0:01:25.5]}
19... Rfc8 {[%clk 0:02:05.9]} 20. Be3 {[%clk 0:01:12.2]} 20... Qxe5 {[%clk
0:01:57.8]} 21. Qb5 {[%clk 0:01:11.6]} 21... Nf6 {[%clk 0:01:38.7]} 22. Qxb7
{[%clk 0:01:02.9]} 22... Qc7 {[%clk 0:01:35.7]} 23. Qb5 {[%clk 0:00:59.8]} 23...
Qa5 {[%clk 0:01:26]} 24. Qd3 {[%clk 0:00:51.8]} 24... Bc5 {[%clk 0:01:18.1]} 25.
Rbd1 {[%clk 0:00:46.1]} 25... Bxe3 {[%clk 0:01:03.7]} 26. Qxe3 {[%clk 0:00:47]}
26... Qc5 {[%clk 0:00:54.1]} 27. Qe2 {[%clk 0:00:46.4]} 27... Qc2 {[%clk
0:00:52.4]} 28. Qe5 {[%clk 0:00:43.9]} 28... Rab8 {[%clk 0:00:44.5]} 29. g4
{[%clk 0:00:41.7]} 29... h6 {[%clk 0:00:43.9]} 30. Nd3 {[%clk 0:00:18.3]} 30...
Nc5 {[%clk 0:00:13.1]} 31. Nb4 {[%clk 0:00:18.1]} 31... Qg6 {[%clk 0:00:10.9]}
32. Rc1 {[%clk 0:00:16.2]} 32... Nce4 {[%clk 0:00:09.5]} 33. Qd4 {[%clk
0:00:15.1]} 33... Ra8 {[%clk 0:00:04.8]} 34. Nd3 {[%clk 0:00:15.1]} 34... Nd6
{[%clk 0:00:03.8]} 35. Ne5 {[%clk 0:00:15.2]} 35... Qh7 {[%clk 0:00:02.5]} 36.
Qb6 {[%clk 0:00:13.6]} 1-0

[Event "*** Titled Tuesday Blitz"]
[Site "Chess.com"]
[Date "2020.04.14"]
[Round "4"]
[White "Vice64"]
[Black "Misticpikachu"]
[Result "1/2-1/2"]
[WhiteElo "2468"]
[BlackElo "2295"]
[TimeControl "180+1"]
[EndTime "10:39:52 PDT"]
[Termination "Game drawn by repetition"]

1. e4 {[%clk 0:03:00.9]} 1... c5 {[%clk 0:02:59.9]} 2. Nf3 {[%clk 0:03:00.1]}
2... Nc6 {[%clk 0:03:00.3]} 3. d4 {[%clk 0:03:00.6]} 3... cxd4 {[%clk
0:03:01.2]} 4. Nxd4 {[%clk 0:03:01.3]} 4... Nf6 {[%clk 0:03:01.8]} 5. Nc3 {[%clk
0:03:01.2]} 5... e6 {[%clk 0:03:02.3]} 6. Ndb5 {[%clk 0:02:59.8]} 6... Bb4
{[%clk 0:03:01.7]} 7. a3 {[%clk 0:02:58.8]} 7... Bxc3+ {[%clk 0:03:02]} 8. Nxc3
{[%clk 0:02:59.7]} 8... d5 {[%clk 0:03:02.3]} 9. Bd3 {[%clk 0:03:00.3]} 9...
dxe4 {[%clk 0:02:58.5]} 10. Nxe4 {[%clk 0:03:01.2]} 10... Nxe4 {[%clk
0:02:58.8]} 11. Bxe4 {[%clk 0:03:02]} 11... Qxd1+ {[%clk 0:02:59.1]} 12. Kxd1
{[%clk 0:03:02.9]} 12... O-O {[%clk 0:02:59.3]} 13. Be3 {[%clk 0:02:53.5]} 13...
Rd8+ {[%clk 0:02:55.1]} 14. Bd3 {[%clk 0:02:50.4]} 14... Ne5 {[%clk 0:02:51.1]}
15. Ke2 {[%clk 0:02:49.5]} 15... Nxd3 {[%clk 0:02:51.4]} 16. cxd3 {[%clk
0:02:49.9]} 16... b6 {[%clk 0:02:31.8]} 17. d4 {[%clk 0:02:43.2]} 17... Ba6+
{[%clk 0:02:30.2]} 18. Kf3 {[%clk 0:02:41.4]} 18... Rac8 {[%clk 0:02:28.3]} 19.
Rac1 {[%clk 0:02:40.7]} 19... Rxc1 {[%clk 0:02:22.2]} 20. Rxc1 {[%clk 0:02:40]}
20... Rc8 {[%clk 0:02:23.1]} 21. Rc3 {[%clk 0:02:35.4]} 21... Rxc3 {[%clk
0:02:18.8]} 22. bxc3 {[%clk 0:02:36.3]} 22... Kf8 {[%clk 0:02:18.5]} 23. g4
{[%clk 0:02:33.4]} 23... Ke7 {[%clk 0:02:17.9]} 24. h4 {[%clk 0:02:32.8]} 24...
Bc4 {[%clk 0:02:09.3]} 25. Ke4 {[%clk 0:02:29.2]} 25... Bd5+ {[%clk 0:02:03.3]}
26. Ke5 {[%clk 0:02:23.8]} 26... f6+ {[%clk 0:01:58.6]} 27. Kf4 {[%clk
0:02:23.9]} 27... b5 {[%clk 0:01:57.2]} 28. Kg3 {[%clk 0:02:19.6]} 28... a6
{[%clk 0:01:52.8]} 29. Bf4 {[%clk 0:02:16.1]} 29... Kd7 {[%clk 0:01:35.5]} 30.
Bb8 {[%clk 0:02:14.3]} 30... Bc4 {[%clk 0:01:26.6]} 31. Kf4 {[%clk 0:02:12.9]}
31... Bd5 {[%clk 0:01:26.2]} 32. Ke3 {[%clk 0:02:11.1]} 32... g6 {[%clk
0:01:21.6]} 33. Ba7 {[%clk 0:02:07.5]} 33... f5 {[%clk 0:01:21]} 34. Kf4 {[%clk
0:02:03.1]} 34... fxg4 {[%clk 0:01:06.4]} 35. Kxg4 {[%clk 0:02:04]} 35... h5+
{[%clk 0:00:59.7]} 36. Kg5 {[%clk 0:02:04]} 36... Be4 {[%clk 0:00:59.7]} 37. Kf6
{[%clk 0:01:59.4]} 37... Bf5 {[%clk 0:00:59.4]} 38. Ke5 {[%clk 0:01:57.3]} 38...
Kc6 {[%clk 0:00:58.9]} 39. Bc5 {[%clk 0:01:55.1]} 39... Bg4 {[%clk 0:00:48.6]}
40. Bb4 {[%clk 0:01:51.1]} 40... Bf5 {[%clk 0:00:48.8]} 41. a4 {[%clk
0:01:40.3]} 41... bxa4 {[%clk 0:00:37.5]} 42. c4 {[%clk 0:01:40.7]} 42... Bg4
{[%clk 0:00:32.8]} 43. Ba3 {[%clk 0:01:35.4]} 43... Be2 {[%clk 0:00:31.2]} 44.
d5+ {[%clk 0:01:33.9]} 44... exd5 {[%clk 0:00:32.1]} 45. cxd5+ {[%clk 0:01:33]}
45... Kb5 {[%clk 0:00:32.3]} 46. Kd4 {[%clk 0:01:32.2]} 46... Bg4 {[%clk
0:00:31.5]} 47. Bd6 {[%clk 0:01:31.4]} 47... Kb6 {[%clk 0:00:23.7]} 48. Bc5+
{[%clk 0:01:30.6]} 48... Kb5 {[%clk 0:00:22.4]} 49. Ba3 {[%clk 0:01:30.7]} 49...
Kb6 {[%clk 0:00:22.5]} 50. Ke5 {[%clk 0:01:29]} 50... Kb5 {[%clk 0:00:21.4]} 51.
Kd4 {[%clk 0:01:29.1]} 51... Kb6 {[%clk 0:00:21.4]} 52. Kc4 {[%clk 0:01:28.9]}
52... Be2+ {[%clk 0:00:19.9]} 53. Kb4 {[%clk 0:01:28.4]} 53... Bd1 {[%clk
0:00:20.2]} 54. d6 {[%clk 0:01:19.6]} 54... Kc6 {[%clk 0:00:19.3]} 55. Ka5
{[%clk 0:01:19.8]} 55... Kd7 {[%clk 0:00:14]} 56. Kxa6 {[%clk 0:01:19.5]} 56...
Bb3 {[%clk 0:00:13]} 57. Kb5 {[%clk 0:01:19.5]} 57... Bc2 {[%clk 0:00:13.5]} 58.
Kc5 {[%clk 0:01:20]} 58... Bb3 {[%clk 0:00:13.9]} 59. Kb4 {[%clk 0:01:20.4]}
59... Bc2 {[%clk 0:00:14]} 60. Kc3 {[%clk 0:01:20.8]} 60... Bb3 {[%clk
0:00:14.5]} 61. Bb4 {[%clk 0:01:21.3]} 61... Be6 {[%clk 0:00:13.3]} 62. Kd4
{[%clk 0:01:21.6]} 62... Bf5 {[%clk 0:00:13.5]} 63. Ba3 {[%clk 0:01:21.3]} 63...
Bc2 {[%clk 0:00:13.3]} 64. Ke5 {[%clk 0:01:21.8]} 64... Bf5 {[%clk 0:00:13.8]}
65. Kf6 {[%clk 0:01:22.4]} 65... Bc2 {[%clk 0:00:14.1]} 66. Ke5 {[%clk 0:01:22]}
66... Bf5 {[%clk 0:00:14.6]} 67. f3 {[%clk 0:01:22.3]} 67... Bb1 {[%clk
0:00:15]} 68. f4 {[%clk 0:01:22.9]} 68... Bf5 {[%clk 0:00:15.9]} 69. Kf6 {[%clk
0:01:23.4]} 69... Bb1 {[%clk 0:00:16.4]} 70. Bb2 {[%clk 0:01:22.5]} 70... Bf5
{[%clk 0:00:16.3]} 71. Ba3 {[%clk 0:01:22.5]} 71... Bb1 {[%clk 0:00:16.7]} 72.
Ke5 {[%clk 0:01:23]} 72... Bf5 {[%clk 0:00:17]} 73. Kf6 {[%clk 0:01:23.2]}
1/2-1/2

[Event "*** Titled Tuesday Blitz"]
[Site "Chess.com"]
[Date "2020.04.14"]
[Round "4"]
[White "BlackWidow515"]
[Black "LordIron"]
[Result "0-1"]
[WhiteElo "1950"]
[BlackElo "2214"]
[TimeControl "180+1"]
[EndTime "10:39:52 PDT"]
[Termination "LordIron won on time"]

1. e4 {[%clk 0:03:00.9]} 1... c5 {[%clk 0:02:59.5]} 2. Nf3 {[%clk 0:02:59]} 2...
d6 {[%clk 0:03:00.1]} 3. d4 {[%clk 0:02:59.5]} 3... Nf6 {[%clk 0:03:00.1]} 4.
Nc3 {[%clk 0:02:54.3]} 4... cxd4 {[%clk 0:02:59.6]} 5. Nxd4 {[%clk 0:02:54.3]}
5... a6 {[%clk 0:02:59.9]} 6. Be2 {[%clk 0:02:51.4]} 6... e5 {[%clk 0:02:58.8]}
7. Nf3 {[%clk 0:02:50.9]} 7... Be7 {[%clk 0:02:57.6]} 8. Be3 {[%clk 0:02:51]}
8... O-O {[%clk 0:02:57.7]} 9. O-O {[%clk 0:02:51.4]} 9... Be6 {[%clk
0:02:58.3]} 10. Qd2 {[%clk 0:02:46.7]} 10... h6 {[%clk 0:02:57.3]} 11. Rfd1
{[%clk 0:02:46.5]} 11... Nbd7 {[%clk 0:02:57]} 12. a4 {[%clk 0:02:37.6]} 12...
Rc8 {[%clk 0:02:55.8]} 13. h3 {[%clk 0:02:36.7]} 13... Qa5 {[%clk 0:02:45.4]}
14. Bd3 {[%clk 0:02:32.5]} 14... Nc5 {[%clk 0:02:37.6]} 15. Bxc5 {[%clk
0:02:01.7]} 15... Rxc5 {[%clk 0:02:38.5]} 16. Ne2 {[%clk 0:01:48.6]} 16... Qxd2
{[%clk 0:02:27.1]} 17. Nxd2 {[%clk 0:01:41.1]} 17... Rfc8 {[%clk 0:02:27.4]} 18.
c4 {[%clk 0:01:07.2]} 18... R5c7 {[%clk 0:02:09.5]} 19. b3 {[%clk 0:01:02.3]}
19... Nd7 {[%clk 0:02:01.2]} 20. Nc3 {[%clk 0:00:57]} 20... Bg5 {[%clk
0:01:53.6]} 21. Nf3 {[%clk 0:00:51.5]} 21... Be7 {[%clk 0:01:50.3]} 22. Nd5
{[%clk 0:00:50.6]} 22... Bxd5 {[%clk 0:01:50]} 23. exd5 {[%clk 0:00:49.9]} 23...
g6 {[%clk 0:01:46]} 24. g4 {[%clk 0:00:47.4]} 24... a5 {[%clk 0:01:33.8]} 25.
Nd2 {[%clk 0:00:45.5]} 25... Nc5 {[%clk 0:01:33]} 26. Bc2 {[%clk 0:00:44.9]}
26... Bg5 {[%clk 0:01:29.8]} 27. Ne4 {[%clk 0:00:43.5]} 27... Nxe4 {[%clk
0:01:29.2]} 28. Bxe4 {[%clk 0:00:43.5]} 28... Rf8 {[%clk 0:01:27]} 29. Rd3
{[%clk 0:00:30.9]} 29... f5 {[%clk 0:01:26.5]} 30. Bg2 {[%clk 0:00:26.2]} 30...
e4 {[%clk 0:01:25.9]} 31. Rdd1 {[%clk 0:00:24.5]} 31... Kf7 {[%clk 0:01:22.2]}
32. Ra2 {[%clk 0:00:22.4]} 32... Kf6 {[%clk 0:01:21.7]} 33. Re2 {[%clk
0:00:21.8]} 33... Ke5 {[%clk 0:01:17.9]} 34. Rde1 {[%clk 0:00:20.6]} 34... Rcf7
{[%clk 0:01:14.7]} 35. f3 {[%clk 0:00:19.1]} 35... e3 {[%clk 0:01:13]} 36. h4
{[%clk 0:00:19.4]} 36... Bf4 {[%clk 0:01:10.9]} 37. Bh3 {[%clk 0:00:15]} 37...
fxg4 {[%clk 0:01:08.6]} 38. Bxg4 {[%clk 0:00:14.9]} 38... h5 {[%clk 0:01:09]}
39. Bh3 {[%clk 0:00:15]} 39... Kd4 {[%clk 0:01:07.1]} 40. Rd1+ {[%clk
0:00:13.4]} 40... Kc5 {[%clk 0:01:06.7]} 41. Be6 {[%clk 0:00:12.9]} 41... Rf6
{[%clk 0:01:05.7]} 42. Rd3 {[%clk 0:00:12.9]} 42... Be5 {[%clk 0:00:59.5]} 43.
Kf1 {[%clk 0:00:11.6]} 43... Bd4 {[%clk 0:00:58.9]} 44. Ke1 {[%clk 0:00:11]}
44... Rxf3 {[%clk 0:00:58.5]} 45. Kd1 {[%clk 0:00:10.7]} 45... Rf1+ {[%clk
0:00:57.5]} 46. Kc2 {[%clk 0:00:10.8]} 46... R8f2 {[%clk 0:00:57.1]} 0-1

[Event "*** Titled Tuesday Blitz"]
[Site "Chess.com"]
[Date "2020.04.14"]
[Round "4"]
[White "TheCount"]
[Black "PawnEatingZombie"]
[Result "1-0"]
[WhiteElo "2599"]
[BlackElo "2145"]
[TimeControl "180+1"]
[EndTime "10:39:54 PDT"]
[Termination "TheCount won on time"]

1. Nf3 {[%clk 0:02:53.8]} 1... d5 {[%clk 0:02:59.7]} 2. g3 {[%clk 0:02:46.2]}
2... e6 {[%clk 0:02:59.4]} 3. Bg2 {[%clk 0:02:46.2]} 3... b5 {[%clk 0:02:59.4]}
4. O-O {[%clk 0:02:40.1]} 4... Bb7 {[%clk 0:02:58]} 5. a4 {[%clk 0:02:28.8]}
5... b4 {[%clk 0:02:55.9]} 6. d4 {[%clk 0:02:23.4]} 6... Nf6 {[%clk 0:02:54.3]}
7. Ne5 {[%clk 0:02:13.2]} 7... c5 {[%clk 0:02:47.4]} 8. c4 {[%clk 0:01:59.6]}
8... Nbd7 {[%clk 0:02:26.7]} 9. Bf4 {[%clk 0:01:51.8]} 9... Be7 {[%clk
0:02:17.6]} 10. a5 {[%clk 0:01:49.3]} 10... a6 {[%clk 0:02:16.1]} 11. Qa4 {[%clk
0:01:20.7]} 11... O-O {[%clk 0:01:52.6]} 12. Nc6 {[%clk 0:01:15.6]} 12... Bxc6
{[%clk 0:01:51.6]} 13. Qxc6 {[%clk 0:01:16.5]} 13... cxd4 {[%clk 0:01:44.6]} 14.
cxd5 {[%clk 0:01:08.5]} 14... Nxd5 {[%clk 0:01:40.1]} 15. Bxd5 {[%clk
0:01:07.5]} 15... exd5 {[%clk 0:01:39.5]} 16. Qxd5 {[%clk 0:01:01.8]} 16... Nc5
{[%clk 0:01:33.2]} 17. Qxd8 {[%clk 0:00:39]} 17... Rfxd8 {[%clk 0:01:32.4]} 18.
Nd2 {[%clk 0:00:39.9]} 18... d3 {[%clk 0:01:28.5]} 19. Rfe1 {[%clk 0:00:23.2]}
19... Bf6 {[%clk 0:01:26.7]} 20. Nc4 {[%clk 0:00:20.4]} 20... Nb3 {[%clk
0:01:05.5]} 21. Rab1 {[%clk 0:00:19.5]} 21... g5 {[%clk 0:00:46.6]} 22. Be3
{[%clk 0:00:14.8]} 22... Rac8 {[%clk 0:00:46.1]} 23. exd3 {[%clk 0:00:08.8]}
23... Rxd3 {[%clk 0:00:43.6]} 24. Nb6 {[%clk 0:00:07.9]} 24... Rc2 {[%clk
0:00:39.5]} 25. Rbd1 {[%clk 0:00:01.9]} 25... Rxd1 {[%clk 0:00:36.6]} 26. Rxd1
{[%clk 0:00:02.8]} 26... Rxb2 {[%clk 0:00:37]} 27. Nd5 {[%clk 0:00:03]} 27...
Bc3 {[%clk 0:00:34.8]} 28. Bxg5 {[%clk 0:00:03.3]} 28... Nxa5 {[%clk 0:00:20]}
29. Nxc3 {[%clk 0:00:03.5]} 29... bxc3 {[%clk 0:00:19.5]} 30. Bf6 {[%clk
0:00:04.2]} 30... h5 {[%clk 0:00:16.4]} 31. Bxc3 {[%clk 0:00:03.6]} 31... Ra2
{[%clk 0:00:15.1]} 32. Rd8+ {[%clk 0:00:03.4]} 32... Kh7 {[%clk 0:00:14.5]} 33.
Rd5 {[%clk 0:00:04]} 33... Nc4 {[%clk 0:00:11.8]} 34. Rxh5+ {[%clk 0:00:04.5]}
34... Kg6 {[%clk 0:00:11.5]} 35. Rc5 {[%clk 0:00:05.4]} 35... Nd2 {[%clk
0:00:06.5]} 36. Bxd2 {[%clk 0:00:05.6]} 36... Rxd2 {[%clk 0:00:05.5]} 37. Rc6+
{[%clk 0:00:05.9]} 37... f6 {[%clk 0:00:02.6]} 38. Rxa6 {[%clk 0:00:06.3]} 38...
Kg5 {[%clk 0:00:02]} 39. Ra4 {[%clk 0:00:06.5]} 39... f5 {[%clk 0:00:01.7]} 40.
h4+ {[%clk 0:00:07.1]} 40... Kg6 {[%clk 0:00:01]} 41. Kg2 {[%clk 0:00:08]} 1-0

[Event "*** Titled Tuesday Blitz"]
[Site "Chess.com"]
[Date "2020.04.14"]
[Round "4"]
[White "katchesskat"]
[Black "Hadza_3"]
[Result "0-1"]
[WhiteElo "2147"]
[BlackElo "2401"]
[TimeControl "180+1"]
[EndTime "10:39:58 PDT"]
[Termination "Hadza_3 won on time"]

1. c4 {[%clk 0:03:00.9]} 1... e5 {[%clk 0:02:48.2]} 2. e3 {[%clk 0:03:01.8]}
2... Nc6 {[%clk 0:02:47.5]} 3. a3 {[%clk 0:03:02.3]} 3... a6 {[%clk 0:02:45.9]}
4. Qc2 {[%clk 0:03:02.3]} 4... Bc5 {[%clk 0:02:45.6]} 5. b4 {[%clk 0:03:01.9]}
5... Ba7 {[%clk 0:02:45.4]} 6. Bb2 {[%clk 0:03:02.1]} 6... d6 {[%clk 0:02:45.9]}
7. d4 {[%clk 0:03:01.7]} 7... exd4 {[%clk 0:02:44.7]} 8. b5 {[%clk 0:03:02.1]}
8... axb5 {[%clk 0:02:43.1]} 9. cxb5 {[%clk 0:03:02.1]} 9... dxe3 {[%clk
0:02:40]} 10. bxc6 {[%clk 0:02:52.7]} 10... exf2+ {[%clk 0:02:37.6]} 11. Kd1
{[%clk 0:02:50.6]} 11... fxg1=Q {[%clk 0:02:34]} 12. Rxg1 {[%clk 0:02:50.2]}
12... Bxg1 {[%clk 0:02:27.2]} 13. Bxg7 {[%clk 0:02:48.6]} 13... Bg4+ {[%clk
0:02:19.7]} 14. Be2 {[%clk 0:02:45.2]} 14... Bxe2+ {[%clk 0:02:03.4]} 15. Qxe2+
{[%clk 0:02:46.1]} 15... Qe7 {[%clk 0:02:04.3]} 16. Bxh8 {[%clk 0:02:37.7]}
16... bxc6 {[%clk 0:01:59.8]} 17. Qg4 {[%clk 0:01:50.4]} 17... Nh6 {[%clk
0:01:42.5]} 18. Qf4 {[%clk 0:01:33]} 18... Be3 {[%clk 0:01:39.5]} 19. Qf3 {[%clk
0:01:24.9]} 19... d5 {[%clk 0:01:27.4]} 20. Nc3 {[%clk 0:01:00.7]} 20... Kd7
{[%clk 0:01:07.3]} 21. Bf6 {[%clk 0:00:57.4]} 21... Qe6 {[%clk 0:00:57.2]} 22.
h3 {[%clk 0:00:25.2]} 22... d4 {[%clk 0:00:47.4]} 23. Ne4 {[%clk 0:00:24.5]}
23... Qb3+ {[%clk 0:00:46.7]} 24. Ke1 {[%clk 0:00:24.8]} 24... Qb2 {[%clk
0:00:22.6]} 25. Rd1 {[%clk 0:00:21.7]} 25... Rxa3 {[%clk 0:00:20.1]} 26. Nc5+
{[%clk 0:00:19.3]} 26... Kc8 {[%clk 0:00:20.2]} 27. Nd3 {[%clk 0:00:16.3]} 27...
Qc3+ {[%clk 0:00:19.5]} 28. Kf1 {[%clk 0:00:16.1]} 28... Qc4 {[%clk 0:00:19.1]}
29. Qe4 {[%clk 0:00:15.8]} 29... Rb3 {[%clk 0:00:12.9]} 30. Qe8+ {[%clk
0:00:15.3]} 30... Kb7 {[%clk 0:00:12.9]} 31. Qe4 {[%clk 0:00:15.8]} 31... Ng8
{[%clk 0:00:10.3]} 32. Be5 {[%clk 0:00:12.8]} 32... Ne7 {[%clk 0:00:09.3]} 33.
Ke2 {[%clk 0:00:13.2]} 33... f5 {[%clk 0:00:08.2]} 34. Qh4 {[%clk 0:00:02]}
34... Qc2+ {[%clk 0:00:07.3]} 35. Kf3 {[%clk 0:00:01]} 35... Qxd1+ {[%clk
0:00:07]} 0-1

[Event "*** Titled Tuesday Blitz"]
[Site "Chess.com"]
[Date "2020.04.14"]
[Round "4"]
[White "BogdanDeac"]
[Black "Khamrakulov_Djurabek"]
[Result "1-0"]
[WhiteElo "2739"]
[BlackElo "2898"]
[TimeControl "180+1"]
[EndTime "10:39:59 PDT"]
[Termination "BogdanDeac won by resignation"]

1. Nf3 {[%clk 0:03:00.9]} 1... d5 {[%clk 0:02:59]} 2. d4 {[%clk 0:03:00.5]} 2...
Nf6 {[%clk 0:02:55.9]} 3. c4 {[%clk 0:03:00.5]} 3... e6 {[%clk 0:02:55.6]} 4.
Nc3 {[%clk 0:02:59.7]} 4... c5 {[%clk 0:02:54]} 5. cxd5 {[%clk 0:02:58.9]} 5...
exd5 {[%clk 0:02:53.9]} 6. g3 {[%clk 0:02:52.1]} 6... Nc6 {[%clk 0:02:51.1]} 7.
Bg2 {[%clk 0:02:52.1]} 7... cxd4 {[%clk 0:02:49.8]} 8. Nxd4 {[%clk 0:02:51.7]}
8... Bc5 {[%clk 0:02:49.5]} 9. Nb3 {[%clk 0:02:51.4]} 9... Bb4 {[%clk
0:02:45.6]} 10. O-O {[%clk 0:02:44.2]} 10... Be6 {[%clk 0:02:42]} 11. Bg5 {[%clk
0:02:40.7]} 11... Bxc3 {[%clk 0:02:40.8]} 12. bxc3 {[%clk 0:02:39.7]} 12... O-O
{[%clk 0:02:40.6]} 13. Nc5 {[%clk 0:02:20.1]} 13... b6 {[%clk 0:02:25]} 14. Nxe6
{[%clk 0:02:11]} 14... fxe6 {[%clk 0:02:25.5]} 15. e4 {[%clk 0:01:53.3]} 15...
Ne7 {[%clk 0:01:56.5]} 16. exd5 {[%clk 0:00:57.8]} 16... exd5 {[%clk 0:01:57.4]}
17. c4 {[%clk 0:00:56.5]} 17... dxc4 {[%clk 0:01:55.1]} 18. Bxa8 {[%clk
0:00:44.1]} 18... Qxd1 {[%clk 0:01:49.9]} 19. Raxd1 {[%clk 0:00:38.6]} 19...
Rxa8 {[%clk 0:01:50.2]} 20. Bxf6 {[%clk 0:00:36.1]} 20... gxf6 {[%clk 0:01:50]}
21. Rfe1 {[%clk 0:00:36.3]} 21... Ng6 {[%clk 0:01:41.7]} 22. f4 {[%clk
0:00:33.5]} 22... Rc8 {[%clk 0:01:26.8]} 23. Rd7 {[%clk 0:00:30.1]} 23... a6
{[%clk 0:01:14]} 24. Rd6 {[%clk 0:00:28.1]} 24... b5 {[%clk 0:01:03.7]} 25. Rxa6
{[%clk 0:00:24]} 25... f5 {[%clk 0:01:03.9]} 26. Rb6 {[%clk 0:00:22]} 26... Rc5
{[%clk 0:00:59.6]} 27. Rb1 {[%clk 0:00:20.6]} 27... c3 {[%clk 0:00:59.8]} 28.
R6xb5 {[%clk 0:00:16.6]} 28... c2 {[%clk 0:00:59.5]} 29. Rb8+ {[%clk 0:00:15.4]}
29... Kf7 {[%clk 0:00:59.4]} 30. Rc1 {[%clk 0:00:15]} 30... Ne7 {[%clk
0:00:58.5]} 31. Rb2 {[%clk 0:00:14.1]} 31... Nd5 {[%clk 0:00:59]} 32. Rcxc2
{[%clk 0:00:13.2]} 32... Ra5 {[%clk 0:00:58.6]} 33. Rb7+ {[%clk 0:00:10.1]}
33... Kg6 {[%clk 0:00:57.6]} 34. Rc6+ {[%clk 0:00:09.9]} 34... Kh5 {[%clk
0:00:57.9]} 35. h3 {[%clk 0:00:07.3]} 35... h6 {[%clk 0:00:43.1]} 36. Rh7 {[%clk
0:00:06.3]} 36... Nxf4 {[%clk 0:00:44]} 37. Rhxh6+ {[%clk 0:00:04.2]} 37... Kg5
{[%clk 0:00:43.5]} 38. gxf4+ {[%clk 0:00:04.2]} 38... Kxf4 {[%clk 0:00:44.4]}
39. Rc2 {[%clk 0:00:04]} 39... Kg5 {[%clk 0:00:45.3]} 40. Rhc6 {[%clk
0:00:02.9]} 40... Ra3 {[%clk 0:00:46.2]} 41. Rg2+ {[%clk 0:00:03.4]} 41... Kf4
{[%clk 0:00:45.4]} 42. Rf2+ {[%clk 0:00:03]} 42... Ke5 {[%clk 0:00:45.5]} 43.
Kh2 {[%clk 0:00:02.9]} 43... Ra4 {[%clk 0:00:44.7]} 44. Rc5+ {[%clk 0:00:03.3]}
44... Ke6 {[%clk 0:00:44]} 45. Rcxf5 {[%clk 0:00:04.2]} 45... Ra3 {[%clk
0:00:44.7]} 46. R5f3 {[%clk 0:00:04.8]} 46... Ra8 {[%clk 0:00:44.5]} 47. Rg3
{[%clk 0:00:05.3]} 47... Ke5 {[%clk 0:00:44.5]} 48. Re3+ {[%clk 0:00:05.8]}
48... Kd4 {[%clk 0:00:44.8]} 49. Rfe2 {[%clk 0:00:06.7]} 49... Ra5 {[%clk
0:00:44.4]} 50. Rb3 {[%clk 0:00:06.6]} 50... Kc4 {[%clk 0:00:43.6]} 51. Rd2
{[%clk 0:00:06.4]} 51... Ra8 {[%clk 0:00:43.5]} 52. Rb1 {[%clk 0:00:06.3]} 52...
Kc3 {[%clk 0:00:43.3]} 53. Rbb2 {[%clk 0:00:05.9]} 53... Ra4 {[%clk 0:00:41.3]}
54. Rbc2+ {[%clk 0:00:05.8]} 54... Kb4 {[%clk 0:00:41.4]} 55. Rd4+ {[%clk
0:00:05.6]} 1-0

[Event "*** Titled Tuesday Blitz"]
[Site "Chess.com"]
[Date "2020.04.14"]
[Round "4"]
[White "Anton_Demchenko"]
[Black "afgano29"]
[Result "1-0"]
[WhiteElo "2940"]
[BlackElo "2705"]
[TimeControl "180+1"]
[EndTime "10:39:59 PDT"]
[Termination "Anton_Demchenko won on time"]

1. d4 {[%clk 0:03:00.9]} 1... Nf6 {[%clk 0:02:59.8]} 2. Nf3 {[%clk 0:02:58.7]}
2... g6 {[%clk 0:03:00.1]} 3. Bf4 {[%clk 0:02:56.8]} 3... d6 {[%clk 0:02:59.2]}
4. c3 {[%clk 0:02:56.1]} 4... Bg7 {[%clk 0:02:58.6]} 5. Nbd2 {[%clk 0:02:56.4]}
5... O-O {[%clk 0:02:57.4]} 6. e4 {[%clk 0:02:56.7]} 6... Nbd7 {[%clk
0:02:54.6]} 7. Be2 {[%clk 0:02:56.1]} 7... Re8 {[%clk 0:02:54.2]} 8. h3 {[%clk
0:02:53.1]} 8... e5 {[%clk 0:02:50.2]} 9. dxe5 {[%clk 0:02:54]} 9... dxe5 {[%clk
0:02:49.5]} 10. Be3 {[%clk 0:02:54.3]} 10... Qe7 {[%clk 0:02:43.7]} 11. Qc2
{[%clk 0:02:49.5]} 11... c6 {[%clk 0:02:40.5]} 12. a4 {[%clk 0:02:48.1]} 12...
Nh5 {[%clk 0:02:25.6]} 13. g3 {[%clk 0:02:43]} 13... Nc5 {[%clk 0:02:19.4]} 14.
Nh2 {[%clk 0:02:31.6]} 14... Nf6 {[%clk 0:02:10.8]} 15. b4 {[%clk 0:02:22.1]}
15... Ne6 {[%clk 0:02:08.1]} 16. Nc4 {[%clk 0:02:06]} 16... Nc7 {[%clk
0:01:43.9]} 17. Bc5 {[%clk 0:01:54.1]} 17... Qe6 {[%clk 0:01:36.7]} 18. Nd6
{[%clk 0:01:54.3]} 18... Rf8 {[%clk 0:01:28.5]} 19. Nf3 {[%clk 0:01:49.4]} 19...
b6 {[%clk 0:01:18.6]} 20. Bc4 {[%clk 0:01:48.9]} 20... Ncd5 {[%clk 0:01:01]} 21.
exd5 {[%clk 0:01:28.3]} 21... cxd5 {[%clk 0:00:58]} 22. Ng5 {[%clk 0:01:28.7]}
22... Qd7 {[%clk 0:00:49.3]} 23. Bb5 {[%clk 0:01:18.1]} 23... Qc7 {[%clk
0:00:47.1]} 24. Ne8 {[%clk 0:00:45.3]} 24... Rxe8 {[%clk 0:00:33.4]} 25. Bxe8
{[%clk 0:00:45.1]} 25... Nxe8 {[%clk 0:00:30.5]} 26. Be3 {[%clk 0:00:45.3]}
26... Bf5 {[%clk 0:00:23]} 27. Qd2 {[%clk 0:00:39.8]} 27... Nd6 {[%clk
0:00:20.3]} 28. O-O {[%clk 0:00:32.2]} 28... Nc4 {[%clk 0:00:14]} 29. Qxd5
{[%clk 0:00:30.2]} 29... Rd8 {[%clk 0:00:14.3]} 30. Qf3 {[%clk 0:00:20.7]} 30...
h6 {[%clk 0:00:12.2]} 31. Ne4 {[%clk 0:00:21]} 31... Bxh3 {[%clk 0:00:11.1]} 32.
Rfd1 {[%clk 0:00:19.8]} 32... Bf5 {[%clk 0:00:07.7]} 33. g4 {[%clk 0:00:15.2]}
33... Nxe3 {[%clk 0:00:05.3]} 34. Rxd8+ {[%clk 0:00:11.3]} 34... Qxd8 {[%clk
0:00:05.1]} 35. fxe3 {[%clk 0:00:11.8]} 35... Be6 {[%clk 0:00:03]} 36. Rf1
{[%clk 0:00:10]} 36... Qd3 {[%clk 0:00:01.9]} 37. g5 {[%clk 0:00:07.6]} 1-0